[Event "Titled Tuesday Blitz March 22 Early 2022"]
[White "Sargsyan, Anna M."]
[Black "Borodavkin, Anatoly"]
[WhiteFideId "13308130"]
[BlackFideId "14150662"]
[WhiteElo "2271"]
[BlackElo "1845"]
[Result "1-0"]
[Round "01"]
[TimeControl "180+1"]
[Date "2022.03.22"]
[WhiteClock "0:00:05"]
[BlackClock "0:00:03"]

1. d4 {[%clk 0:02:20]}  d5 {[%clk 0:02:58]} 2. c4 {[%clk 0:02:16]}  Nc6 {[%clk 0:02:58]} 3. Nf3 {[%clk 0:02:13]}  Bg4 {[%clk 0:02:58]} 4. Nc3 {[%clk 0:02:12]}  e6 {[%clk 0:02:54]} 5. cxd5 {[%clk 0:02:08]}  exd5 {[%clk 0:02:53]} 6. Bf4 {[%clk 0:02:09]}  Bb4 {[%clk 0:02:09]} 7. Qb3 {[%clk 0:02:04]}  Nge7 {[%clk 0:02:06]} 8. O-O-O {[%clk 0:01:59]}  O-O {[%clk 0:02:05]} 9. Nb5 {[%clk 0:01:58]}  a6 {[%clk 0:01:54]} 10. Na3 {[%clk 0:01:35]}  Bd6 {[%clk 0:01:41]} 11. Bg5 {[%clk 0:01:33]}  f6 {[%clk 0:01:30]} 12. Bh4 {[%clk 0:01:31]}  Kh8 {[%clk 0:01:13]} 13. Bg3 {[%clk 0:01:26]}  Nf5 {[%clk 0:01:07]} 14. e3 {[%clk 0:01:25]}  Nce7 {[%clk 0:01:00]} 15. Nc2 {[%clk 0:01:23]}  c5 {[%clk 0:00:57]} 16. dxc5 {[%clk 0:01:21]}  Bxc5 {[%clk 0:00:55]} 17. Kb1 {[%clk 0:01:17]}  b5 {[%clk 0:00:53]} 18. Be2 {[%clk 0:01:13]}  Qb6 {[%clk 0:00:47]} 19. Nfd4 {[%clk 0:01:08]}  Bxe2 {[%clk 0:00:45]} 20. Nxe2 {[%clk 0:01:09]}  a5 {[%clk 0:00:41]} 21. Nf4 {[%clk 0:01:09]}  a4 {[%clk 0:00:32]} 22. Qd3 {[%clk 0:01:08]}  Rfd8 {[%clk 0:00:23]} 23. Qe2 {[%clk 0:01:03]}  b4 {[%clk 0:00:23]} 24. Nd4 {[%clk 0:01:02]}  b3 {[%clk 0:00:17]} 25. a3 {[%clk 0:01:01]}  Rac8 {[%clk 0:00:15]} 26. Nxf5 {[%clk 0:01:00]}  Nxf5 {[%clk 0:00:15]} 27. Nxd5 {[%clk 0:01:01]}  Qe6 {[%clk 0:00:14]} 28. e4 {[%clk 0:00:54]}  Nd4 {[%clk 0:00:13]} 29. Qd3 {[%clk 0:00:45]}  Nc2 {[%clk 0:00:13]} 30. f3 {[%clk 0:00:40]}  Bxa3 {[%clk 0:00:12]} 31. Qb5 {[%clk 0:00:35]}  Bf8 {[%clk 0:00:05]} 32. Nc7 {[%clk 0:00:26]}  Rxd1+ {[%clk 0:00:02]} 33. Rxd1 {[%clk 0:00:26]}  Rxc7 {[%clk 0:00:02]} 34. Bxc7 {[%clk 0:00:25]}  a3 {[%clk 0:00:02]} 35. Kc1 {[%clk 0:00:17]}  a2 {[%clk 0:00:02]} 36. Kd2 {[%clk 0:00:17]}  a1=Q {[%clk 0:00:02]} 37. Rxa1 {[%clk 0:00:18]}  Nxa1 {[%clk 0:00:02]} 38. Qb8 {[%clk 0:00:13]}  Qe7 {[%clk 0:00:02]} 39. Ke2 {[%clk 0:00:11]}  Qb4 {[%clk 0:00:01]} 40. Qa8 {[%clk 0:00:09]}  Nc2 {[%clk 0:00:01]} 41. Ba5 {[%clk 0:00:08]}  Nd4+ {[%clk 0:00:01]} 42. Kd3 {[%clk 0:00:07]}  Qc5 {[%clk 0:00:01]} 43. Bb6 {[%clk 0:00:07]}  Qd6 {[%clk 0:00:01]} 44. Bxd4 {[%clk 0:00:07]}  h6 {[%clk 0:00:01]} 45. Ke3 {[%clk 0:00:06]}  Kh7 {[%clk 0:00:01]} 46. Qd5 {[%clk 0:00:06]}  Qxd5 {[%clk 0:00:01]} 47. exd5 {[%clk 0:00:07]}  Bd6 {[%clk 0:00:02]} 48. Kd3 {[%clk 0:00:08]}  Bxh2 {[%clk 0:00:01]} 49. Bc5 {[%clk 0:00:08]}  Kg8 {[%clk 0:00:01]} 50. Kc4 {[%clk 0:00:07]}  Kf7 {[%clk 0:00:02]} 51. Kxb3 {[%clk 0:00:08]}  Ke8 {[%clk 0:00:03]} 52. Kc4 {[%clk 0:00:08]}  Kd7 {[%clk 0:00:03]} 53. b4 {[%clk 0:00:09]}  g5 {[%clk 0:00:03]} 54. b5 {[%clk 0:00:07]}  f5 {[%clk 0:00:04]} 55. b6 {[%clk 0:00:07]}  g4 {[%clk 0:00:04]} 56. Be3 {[%clk 0:00:06]}  gxf3 {[%clk 0:00:04]} 57. gxf3 {[%clk 0:00:06]}  h5 {[%clk 0:00:04]} 58. f4 {[%clk 0:00:04]}  Bg3 {[%clk 0:00:04]} 59. Kb5 {[%clk 0:00:03]}  h4 {[%clk 0:00:04]} 60. Ka6 {[%clk 0:00:04]}  h3 {[%clk 0:00:04]} 61. b7 {[%clk 0:00:04]}  h2 {[%clk 0:00:04]} 62. b8=Q {[%clk 0:00:04]}  h1=Q {[%clk 0:00:03]} 63. Qb7+ {[%clk 0:00:05]}  Ke8 {[%clk 0:00:02]} 64. Qc8+ {[%clk 0:00:05]}  Ke7 {[%clk 0:00:03]} 65. Bc5+ {[%clk 0:00:04]}  Kf7 {[%clk 0:00:03]} 66. Qe6+ {[%clk 0:00:03]}  Kg7 {[%clk 0:00:02]} 67. Qe7+ {[%clk 0:00:03]}  Kg6 {[%clk 0:00:02]} 68. Qe8+ {[%clk 0:00:04]}  Kg7 {[%clk 0:00:03]} 69. Bf8+ {[%clk 0:00:04]}  Kf6 {[%clk 0:00:03]} 70. Qe7+ {[%clk 0:00:04]}  Kg6 {[%clk 0:00:03]} 71. Qg7+ {[%clk 0:00:04]}  Kh5 {[%clk 0:00:03]} 72. Qg5# {[%clk 0:00:05]} 1-0


[Site "https://www.chess.com"]

[Event "Titled Tuesday Blitz March 22 Early 2022"]
[White "Selbes, Tarik"]
[Black "Sjugirov, Sanan"]
[WhiteFideId "6302513"]
[BlackFideId "4189302"]
[WhiteElo "2290"]
[BlackElo "2602"]
[Result "0-1"]
[Round "01"]
[TimeControl "180+1"]
[Date "2022.03.22"]
[WhiteClock "0:00:02"]
[BlackClock "0:00:05"]

1. Nf3 {[%clk 0:02:59]}  d5 {[%clk 0:02:58]} 2. g3 {[%clk 0:03:00]}  b6 {[%clk 0:02:57]} 3. Bg2 {[%clk 0:03:00]}  Bb7 {[%clk 0:02:58]} 4. O-O {[%clk 0:03:00]}  e6 {[%clk 0:02:58]} 5. d4 {[%clk 0:03:01]}  Nf6 {[%clk 0:02:56]} 6. Nbd2 {[%clk 0:02:51]}  c5 {[%clk 0:02:52]} 7. c4 {[%clk 0:02:48]}  Be7 {[%clk 0:02:37]} 8. cxd5 {[%clk 0:02:46]}  exd5 {[%clk 0:02:37]} 9. b3 {[%clk 0:02:46]}  O-O {[%clk 0:02:36]} 10. Bb2 {[%clk 0:02:46]}  Nbd7 {[%clk 0:02:28]} 11. Rc1 {[%clk 0:02:46]}  Re8 {[%clk 0:02:27]} 12. Rc2 {[%clk 0:02:45]}  Bf8 {[%clk 0:02:23]} 13. e3 {[%clk 0:02:43]}  a5 {[%clk 0:02:21]} 14. a4 {[%clk 0:02:24]}  Rc8 {[%clk 0:02:17]} 15. Nb1 {[%clk 0:02:16]}  Ba6 {[%clk 0:01:48]} 16. Re1 {[%clk 0:02:15]}  c4 {[%clk 0:01:47]} 17. bxc4 {[%clk 0:02:13]}  Bxc4 {[%clk 0:01:48]} 18. Nfd2 {[%clk 0:02:07]}  Ba6 {[%clk 0:01:44]} 19. Rxc8 {[%clk 0:01:53]}  Qxc8 {[%clk 0:01:45]} 20. Nc3 {[%clk 0:01:52]}  Bb7 {[%clk 0:01:35]} 21. Qb3 {[%clk 0:01:50]}  Bb4 {[%clk 0:01:34]} 22. Rc1 {[%clk 0:01:47]}  Qd8 {[%clk 0:01:31]} 23. Ba3 {[%clk 0:01:30]}  Bxc3 {[%clk 0:01:22]} 24. Rxc3 {[%clk 0:01:18]}  Ne4 {[%clk 0:01:15]} 25. Nxe4 {[%clk 0:01:02]}  dxe4 {[%clk 0:01:16]} 26. Bd6 {[%clk 0:00:52]}  Nf6 {[%clk 0:00:30]} 27. Bc7 {[%clk 0:00:52]}  Qd7 {[%clk 0:00:30]} 28. Bxb6 {[%clk 0:00:43]}  Bd5 {[%clk 0:00:26]} 29. Qb5 {[%clk 0:00:23]}  Qxb5 {[%clk 0:00:19]} 30. axb5 {[%clk 0:00:23]}  a4 {[%clk 0:00:20]} 31. Bc5 {[%clk 0:00:20]}  h5 {[%clk 0:00:16]} 32. b6 {[%clk 0:00:17]}  Ra8 {[%clk 0:00:16]} 33. Bf1 {[%clk 0:00:14]}  Bb7 {[%clk 0:00:11]} 34. Bb5 {[%clk 0:00:13]}  Ra5 {[%clk 0:00:09]} 35. Bc4 {[%clk 0:00:10]}  Nd7 {[%clk 0:00:09]} 36. Ba2 {[%clk 0:00:03]}  g6 {[%clk 0:00:08]} 37. Kf1 {[%clk 0:00:03]}  Kg7 {[%clk 0:00:08]} 38. h4 {[%clk 0:00:04]}  Ra6 {[%clk 0:00:06]} 39. Ke2 {[%clk 0:00:04]}  Nxb6 {[%clk 0:00:06]} 40. Bxb6 {[%clk 0:00:01]}  Rxb6 {[%clk 0:00:07]} 41. Bc4 {[%clk 0:00:01]}  Rb2+ {[%clk 0:00:07]} 42. Ke1 {[%clk 0:00:01]}  Rb4 {[%clk 0:00:06]} 43. d5 {[%clk 0:00:01]}  Rb1+ {[%clk 0:00:05]} 44. Kd2 {[%clk 0:00:01]}  Rb2+ {[%clk 0:00:06]} 45. Rc2 {[%clk 0:00:01]}  Rb6 {[%clk 0:00:06]} 46. Rb2 {[%clk 0:00:02]}  Rxb2+ {[%clk 0:00:05]} 47. Kc3 {[%clk 0:00:02]}  Rxf2 {[%clk 0:00:05]} 0-1


[Site "https://www.chess.com"]

[Event "Titled Tuesday Blitz March 22 Early 2022"]
[White "Shandrygin, Nikita"]
[Black "Bongo Akanga Ndjila, Barthelemy"]
[WhiteFideId "24198668"]
[BlackFideId "10609431"]
[WhiteElo "2324"]
[BlackElo "1803"]
[Result "1-0"]
[Round "01"]
[TimeControl "180+1"]
[Date "2022.03.22"]
[WhiteClock "0:00:27"]
[BlackClock "0:00:10"]

1. Nf3 {[%clk 0:02:51]}  d5 {[%clk 0:02:59]} 2. g3 {[%clk 0:02:47]}  Bg4 {[%clk 0:02:58]} 3. Bg2 {[%clk 0:02:47]}  c6 {[%clk 0:02:58]} 4. d4 {[%clk 0:02:39]}  Nd7 {[%clk 0:02:57]} 5. O-O {[%clk 0:02:39]}  e6 {[%clk 0:02:56]} 6. Nbd2 {[%clk 0:02:26]}  Ngf6 {[%clk 0:02:55]} 7. Ne5 {[%clk 0:02:04]}  Bh5 {[%clk 0:02:53]} 8. b3 {[%clk 0:02:04]}  Bd6 {[%clk 0:02:53]} 9. Bb2 {[%clk 0:02:03]}  O-O {[%clk 0:02:52]} 10. c4 {[%clk 0:02:00]}  Re8 {[%clk 0:02:52]} 11. Re1 {[%clk 0:01:59]}  Bf8 {[%clk 0:02:49]} 12. Qc1 {[%clk 0:01:57]}  Rc8 {[%clk 0:02:47]} 13. e3 {[%clk 0:01:53]}  Bb4 {[%clk 0:02:43]} 14. a3 {[%clk 0:01:52]}  Bf8 {[%clk 0:02:40]} 15. f4 {[%clk 0:01:51]}  Bg6 {[%clk 0:02:35]} 16. Qd1 {[%clk 0:01:46]}  Qc7 {[%clk 0:02:33]} 17. Qe2 {[%clk 0:01:45]}  Rcd8 {[%clk 0:02:23]} 18. Rac1 {[%clk 0:01:44]}  Qa5 {[%clk 0:02:22]} 19. b4 {[%clk 0:01:43]}  Qa6 {[%clk 0:02:16]} 20. Bf1 {[%clk 0:01:27]}  Ne4 {[%clk 0:02:05]} 21. Nxe4 {[%clk 0:01:25]}  Bxe4 {[%clk 0:02:04]} 22. Nxd7 {[%clk 0:01:24]}  Rxd7 {[%clk 0:02:03]} 23. Qf2 {[%clk 0:01:23]}  Qb6 {[%clk 0:01:54]} 24. c5 {[%clk 0:01:22]}  Qd8 {[%clk 0:01:53]} 25. b5 {[%clk 0:01:19]}  Qa5 {[%clk 0:01:43]} 26. Bc3 {[%clk 0:01:14]}  Qxa3 {[%clk 0:01:38]} 27. Qd2 {[%clk 0:01:11]}  Qb3 {[%clk 0:01:28]} 28. Ra1 {[%clk 0:00:43]}  Ra8 {[%clk 0:01:23]} 29. Rec1 {[%clk 0:00:40]}  Rdd8 {[%clk 0:01:18]} 30. Bb4 {[%clk 0:00:38]}  f6 {[%clk 0:01:10]} 31. Ra3 {[%clk 0:00:34]}  Qxa3 {[%clk 0:00:59]} 32. Bxa3 {[%clk 0:00:34]}  cxb5 {[%clk 0:00:54]} 33. Bxb5 {[%clk 0:00:34]}  e5 {[%clk 0:00:52]} 34. fxe5 {[%clk 0:00:28]}  fxe5 {[%clk 0:00:52]} 35. dxe5 {[%clk 0:00:29]}  b6 {[%clk 0:00:47]} 36. Qd4 {[%clk 0:00:27]}  bxc5 {[%clk 0:00:43]} 37. Bxc5 {[%clk 0:00:27]}  Bxc5 {[%clk 0:00:43]} 38. Rxc5 {[%clk 0:00:28]}  Rab8 {[%clk 0:00:41]} 39. e6 {[%clk 0:00:28]}  a6 {[%clk 0:00:40]} 40. e7 {[%clk 0:00:27]}  axb5 {[%clk 0:00:35]} 41. Rxb5 {[%clk 0:00:27]}  Rdc8 {[%clk 0:00:30]} 42. Qc5 {[%clk 0:00:22]}  Ra8 {[%clk 0:00:22]} 43. Ra5 {[%clk 0:00:13]}  Bg6 {[%clk 0:00:20]} 44. Qxd5+ {[%clk 0:00:12]}  Bf7 {[%clk 0:00:19]} 45. Rxa8 {[%clk 0:00:13]}  Bxd5 {[%clk 0:00:18]} 46. Rxc8+ {[%clk 0:00:14]}  Kf7 {[%clk 0:00:18]} 47. e8=Q+ {[%clk 0:00:15]}  Kf6 {[%clk 0:00:17]} 48. Qd8+ {[%clk 0:00:15]}  Ke5 {[%clk 0:00:15]} 49. Rc7 {[%clk 0:00:16]}  Be6 {[%clk 0:00:15]} 50. Re7 {[%clk 0:00:17]}  Kf6 {[%clk 0:00:14]} 51. Qf8+ {[%clk 0:00:18]}  Bf7 {[%clk 0:00:13]} 52. Qe8 {[%clk 0:00:19]}  Bxe8 {[%clk 0:00:13]} 53. Rxe8 {[%clk 0:00:19]}  Kf7 {[%clk 0:00:12]} 54. Ra8 {[%clk 0:00:20]}  g6 {[%clk 0:00:11]} 55. Ra6 {[%clk 0:00:21]}  Kg7 {[%clk 0:00:11]} 56. Kg2 {[%clk 0:00:22]}  h6 {[%clk 0:00:10]} 57. h4 {[%clk 0:00:23]}  g5 {[%clk 0:00:11]} 58. Kh3 {[%clk 0:00:24]}  gxh4 {[%clk 0:00:10]} 59. Kxh4 {[%clk 0:00:24]}  Kh7 {[%clk 0:00:10]} 60. Kh5 {[%clk 0:00:25]}  Kg7 {[%clk 0:00:10]} 61. Rxh6 {[%clk 0:00:25]}  Kg8 {[%clk 0:00:10]} 62. Rg6+ {[%clk 0:00:26]}  Kf7 {[%clk 0:00:10]} 63. Kg5 {[%clk 0:00:26]}  Ke7 {[%clk 0:00:10]} 64. Kf5 {[%clk 0:00:27]} 1-0


[Site "https://www.chess.com"]

[Event "Titled Tuesday Blitz March 22 Early 2022"]
[White "Shtyka, Sergey"]
[Black "Fernandez, Daniel Howard"]
[WhiteFideId "4138465"]
[BlackFideId "5801605"]
[WhiteElo "2014"]
[BlackElo "2466"]
[Result "0-1"]
[Round "01"]
[TimeControl "180+1"]
[Date "2022.03.22"]
[WhiteClock "0:01:21"]
[BlackClock "0:02:15"]

1. e4 {[%clk 0:02:33]}  c5 {[%clk 0:02:59]} 2. Nf3 {[%clk 0:02:32]}  d6 {[%clk 0:02:59]} 3. d4 {[%clk 0:02:32]}  cxd4 {[%clk 0:03:00]} 4. Nxd4 {[%clk 0:02:32]}  Nf6 {[%clk 0:02:59]} 5. Nc3 {[%clk 0:02:32]}  g6 {[%clk 0:02:59]} 6. f4 {[%clk 0:02:32]}  Nc6 {[%clk 0:02:57]} 7. Nxc6 {[%clk 0:02:32]}  bxc6 {[%clk 0:02:57]} 8. e5 {[%clk 0:02:32]}  Nd7 {[%clk 0:02:57]} 9. exd6 {[%clk 0:02:32]}  exd6 {[%clk 0:02:57]} 10. Qd4 {[%clk 0:02:32]}  Nf6 {[%clk 0:02:54]} 11. Ne4 {[%clk 0:02:30]}  Be7 {[%clk 0:02:53]} 12. Nxf6+ {[%clk 0:02:28]}  Bxf6 {[%clk 0:02:53]} 13. Qe4+ {[%clk 0:02:28]}  Kd7 {[%clk 0:02:44]} 14. Be2 {[%clk 0:02:15]}  Re8 {[%clk 0:02:43]} 15. Qf3 {[%clk 0:02:03]}  Ba6 {[%clk 0:02:39]} 16. Be3 {[%clk 0:01:51]}  Bxe2 {[%clk 0:02:33]} 17. Qxe2 {[%clk 0:01:40]}  Bd4 {[%clk 0:02:31]} 18. Bxd4 {[%clk 0:01:39]}  Rxe2+ {[%clk 0:02:31]} 19. Kxe2 {[%clk 0:01:40]}  Qa5 {[%clk 0:02:21]} 20. Bc3 {[%clk 0:01:28]}  Re8+ {[%clk 0:02:18]} 21. Kd2 {[%clk 0:01:21]}  Qd5+ {[%clk 0:02:18]} 22. Kc1 {[%clk 0:01:21]}  Qxg2 {[%clk 0:02:15]} 0-1


[Site "https://www.chess.com"]

[Event "Titled Tuesday Blitz March 22 Early 2022"]
[White "Skuhala, Barbara"]
[Black "Jary, Sergey"]
[WhiteFideId "14605465"]
[BlackFideId "14110350"]
[WhiteElo "2155"]
[BlackElo "2260"]
[Result "0-1"]
[Round "01"]
[TimeControl "180+1"]
[Date "2022.03.22"]
[WhiteClock "0:02:15"]
[BlackClock "0:01:22"]

1. e4 {[%clk 0:03:00]}  c5 {[%clk 0:02:59]} 2. Nf3 {[%clk 0:03:00]}  Nc6 {[%clk 0:02:59]} 3. g3 {[%clk 0:03:00]}  g6 {[%clk 0:02:59]} 4. Bg2 {[%clk 0:03:00]}  Bg7 {[%clk 0:02:59]} 5. O-O {[%clk 0:03:00]}  e6 {[%clk 0:03:00]} 6. Re1 {[%clk 0:03:01]}  Nge7 {[%clk 0:03:00]} 7. c3 {[%clk 0:02:54]}  O-O {[%clk 0:02:57]} 8. d4 {[%clk 0:02:53]}  cxd4 {[%clk 0:02:58]} 9. cxd4 {[%clk 0:02:53]}  d5 {[%clk 0:02:58]} 10. e5 {[%clk 0:02:53]}  Qb6 {[%clk 0:02:57]} 11. Nc3 {[%clk 0:02:48]}  Nf5 {[%clk 0:02:53]} 12. Ne2 {[%clk 0:02:48]}  Bd7 {[%clk 0:02:50]} 13. g4 {[%clk 0:02:48]}  Nfe7 {[%clk 0:02:47]} 14. Ng3 {[%clk 0:02:47]}  Rac8 {[%clk 0:02:39]} 15. g5 {[%clk 0:02:27]}  Nb4 {[%clk 0:02:34]} 16. Re2 {[%clk 0:02:25]}  Bb5 {[%clk 0:02:22]} 17. Rd2 {[%clk 0:02:24]}  Rc7 {[%clk 0:02:06]} 18. a3 {[%clk 0:02:24]}  Nbc6 {[%clk 0:01:53]} 19. b4 {[%clk 0:02:24]}  Bc4 {[%clk 0:01:46]} 20. h4 {[%clk 0:02:21]}  a5 {[%clk 0:01:44]} 21. bxa5 {[%clk 0:02:18]}  Nxa5 {[%clk 0:01:44]} 22. Bb2 {[%clk 0:02:18]}  Nb3 {[%clk 0:01:41]} 23. Rb1 {[%clk 0:02:17]}  Nxd2 {[%clk 0:01:39]} 24. Qxd2 {[%clk 0:02:17]}  Rfc8 {[%clk 0:01:28]} 25. Qe1 {[%clk 0:02:16]}  Bd3 {[%clk 0:01:23]} 26. Rd1 {[%clk 0:02:14]}  Qxb2 {[%clk 0:01:22]} 27. Rxd3 {[%clk 0:02:15]}  Rc1 {[%clk 0:01:22]} 0-1


[Site "https://www.chess.com"]

[Event "Titled Tuesday Blitz March 22 Early 2022"]
[White "Stepanencu, Nicodim-Cosmin"]
[Black "Demchenko, Anton"]
[WhiteFideId "1256220"]
[BlackFideId "4160258"]
[WhiteElo "1913"]
[BlackElo "2539"]
[Result "0-1"]
[Round "01"]
[TimeControl "180+1"]
[Date "2022.03.22"]
[WhiteClock "0:00:01"]
[BlackClock "0:00:37"]

1. b3 {[%clk 0:02:58]}  g6 {[%clk 0:02:59]} 2. Bb2 {[%clk 0:02:58]}  Nf6 {[%clk 0:03:00]} 3. Nf3 {[%clk 0:02:54]}  Bg7 {[%clk 0:02:59]} 4. g3 {[%clk 0:02:54]}  d6 {[%clk 0:03:00]} 5. d4 {[%clk 0:02:51]}  O-O {[%clk 0:02:59]} 6. Bg2 {[%clk 0:02:52]}  b5 {[%clk 0:02:59]} 7. O-O {[%clk 0:02:48]}  Bb7 {[%clk 0:02:59]} 8. Nbd2 {[%clk 0:02:48]}  Nbd7 {[%clk 0:02:59]} 9. e3 {[%clk 0:02:45]}  c5 {[%clk 0:02:53]} 10. c4 {[%clk 0:02:44]}  bxc4 {[%clk 0:02:52]} 11. Nxc4 {[%clk 0:02:44]}  Rc8 {[%clk 0:02:49]} 12. Rc1 {[%clk 0:02:41]}  Rc7 {[%clk 0:02:47]} 13. Bc3 {[%clk 0:02:32]}  Qa8 {[%clk 0:02:46]} 14. dxc5 {[%clk 0:01:41]}  Nxc5 {[%clk 0:02:44]} 15. Qe2 {[%clk 0:01:27]}  Rfc8 {[%clk 0:02:35]} 16. Bb2 {[%clk 0:01:22]}  Nce4 {[%clk 0:02:26]} 17. Nd4 {[%clk 0:01:11]}  Nc3 {[%clk 0:02:16]} 18. Bxc3 {[%clk 0:01:03]}  Bxg2 {[%clk 0:02:17]} 19. Rfe1 {[%clk 0:01:01]}  Bd5 {[%clk 0:02:13]} 20. Ba5 {[%clk 0:00:56]}  Rd7 {[%clk 0:01:53]} 21. Nd2 {[%clk 0:00:51]}  h5 {[%clk 0:01:48]} 22. Rxc8+ {[%clk 0:00:44]}  Qxc8 {[%clk 0:01:48]} 23. e4 {[%clk 0:00:45]}  Bb7 {[%clk 0:01:44]} 24. Qd3 {[%clk 0:00:31]}  Ng4 {[%clk 0:01:26]} 25. f4 {[%clk 0:00:27]}  Qc5 {[%clk 0:01:16]} 26. Bc3 {[%clk 0:00:27]}  e5 {[%clk 0:01:17]} 27. b4 {[%clk 0:00:27]}  Qc8 {[%clk 0:00:58]} 28. N4f3 {[%clk 0:00:20]}  d5 {[%clk 0:00:50]} 29. exd5 {[%clk 0:00:11]}  Rxd5 {[%clk 0:00:42]} 30. Qe2 {[%clk 0:00:05]}  Qxc3 {[%clk 0:00:40]} 31. Ne4 {[%clk 0:00:03]}  Qxb4 {[%clk 0:00:38]} 32. Nfg5 {[%clk 0:00:01]}  Qb6+ {[%clk 0:00:37]} 0-1


[Site "https://www.chess.com"]

[Event "Titled Tuesday Blitz March 22 Early 2022"]
[White "Suarez Uriel, Adrian"]
[Black "Winkels, Marcel"]
[WhiteFideId "22230874"]
[BlackFideId "1003887"]
[WhiteElo "2316"]
[BlackElo "1900"]
[Result "1-0"]
[Round "01"]
[TimeControl "180+1"]
[Date "2022.03.22"]
[WhiteClock "0:02:24"]
[BlackClock "0:00:44"]

1. d4 {[%clk 0:02:58]}  Nf6 {[%clk 0:02:58]} 2. c4 {[%clk 0:02:58]}  c5 {[%clk 0:02:57]} 3. d5 {[%clk 0:02:57]}  b5 {[%clk 0:02:56]} 4. cxb5 {[%clk 0:02:56]}  a6 {[%clk 0:02:55]} 5. bxa6 {[%clk 0:02:56]}  g6 {[%clk 0:02:53]} 6. Nc3 {[%clk 0:02:56]}  Bg7 {[%clk 0:02:52]} 7. Nf3 {[%clk 0:02:54]}  O-O {[%clk 0:02:51]} 8. e4 {[%clk 0:02:54]}  d6 {[%clk 0:02:49]} 9. a4 {[%clk 0:02:49]}  Nxa6 {[%clk 0:02:48]} 10. Bb5 {[%clk 0:02:48]}  Nc7 {[%clk 0:02:46]} 11. Bc6 {[%clk 0:02:47]}  Rb8 {[%clk 0:02:45]} 12. O-O {[%clk 0:02:47]}  Bd7 {[%clk 0:02:29]} 13. Re1 {[%clk 0:02:37]}  Bxc6 {[%clk 0:02:27]} 14. dxc6 {[%clk 0:02:38]}  Na6 {[%clk 0:02:18]} 15. Nb5 {[%clk 0:02:36]}  Qb6 {[%clk 0:02:10]} 16. e5 {[%clk 0:02:36]}  Ne8 {[%clk 0:01:53]} 17. exd6 {[%clk 0:02:33]}  exd6 {[%clk 0:01:51]} 18. Bg5 {[%clk 0:02:33]}  Qxc6 {[%clk 0:01:36]} 19. Be7 {[%clk 0:02:32]}  d5 {[%clk 0:01:28]} 20. Bxf8 {[%clk 0:02:31]}  Kxf8 {[%clk 0:01:22]} 21. Ne5 {[%clk 0:02:30]}  Qa8 {[%clk 0:01:15]} 22. Nd7+ {[%clk 0:02:29]}  Kg8 {[%clk 0:00:50]} 23. Nxb8 {[%clk 0:02:29]}  Nxb8 {[%clk 0:00:50]} 24. Rxe8+ {[%clk 0:02:28]}  Bf8 {[%clk 0:00:48]} 25. Qd2 {[%clk 0:02:28]}  Qc6 {[%clk 0:00:44]} 26. Rxb8 {[%clk 0:02:24]} 1-0


[Site "https://www.chess.com"]

[Event "Titled Tuesday Blitz March 22 Early 2022"]
[White "Svane, Rasmus"]
[Black "Pires, Marcos Vinicius Torsani"]
[WhiteFideId "4657101"]
[BlackFideId "2118939"]
[WhiteElo "2645"]
[BlackElo "2273"]
[Result "1-0"]
[Round "01"]
[TimeControl "180+1"]
[Date "2022.03.22"]
[WhiteClock "0:01:00"]
[BlackClock "0:00:12"]

1. Nf3 {[%clk 0:03:00]}  Nf6 {[%clk 0:02:52]} 2. g3 {[%clk 0:02:59]}  g6 {[%clk 0:02:48]} 3. Bg2 {[%clk 0:02:59]}  Bg7 {[%clk 0:02:49]} 4. O-O {[%clk 0:02:59]}  O-O {[%clk 0:02:49]} 5. d4 {[%clk 0:02:59]}  d6 {[%clk 0:02:48]} 6. Re1 {[%clk 0:02:56]}  d5 {[%clk 0:02:42]} 7. c3 {[%clk 0:02:55]}  b6 {[%clk 0:02:41]} 8. c4 {[%clk 0:02:54]}  Bb7 {[%clk 0:02:39]} 9. cxd5 {[%clk 0:02:55]}  Nxd5 {[%clk 0:02:31]} 10. e4 {[%clk 0:02:54]}  Nf6 {[%clk 0:02:32]} 11. Nc3 {[%clk 0:02:55]}  Nbd7 {[%clk 0:02:32]} 12. Bf4 {[%clk 0:02:50]}  a6 {[%clk 0:02:29]} 13. a4 {[%clk 0:02:47]}  e6 {[%clk 0:02:25]} 14. Qb3 {[%clk 0:02:34]}  c5 {[%clk 0:02:04]} 15. d5 {[%clk 0:02:33]}  exd5 {[%clk 0:02:05]} 16. exd5 {[%clk 0:02:33]}  Re8 {[%clk 0:02:05]} 17. d6 {[%clk 0:02:18]}  Rxe1+ {[%clk 0:01:54]} 18. Rxe1 {[%clk 0:02:19]}  Qf8 {[%clk 0:01:55]} 19. Re7 {[%clk 0:02:09]}  Re8 {[%clk 0:01:48]} 20. Ng5 {[%clk 0:02:06]}  Rxe7 {[%clk 0:00:50]} 21. dxe7 {[%clk 0:02:07]}  Qxe7 {[%clk 0:00:36]} 22. Bxb7 {[%clk 0:02:05]}  Qe1+ {[%clk 0:00:37]} 23. Kg2 {[%clk 0:02:05]}  Qe7 {[%clk 0:00:30]} 24. Nd5 {[%clk 0:02:04]}  Nxd5 {[%clk 0:00:30]} 25. Bxd5 {[%clk 0:02:05]}  h6 {[%clk 0:00:23]} 26. Nxf7 {[%clk 0:01:54]}  Kh7 {[%clk 0:00:22]} 27. Nd6 {[%clk 0:01:54]}  Nf6 {[%clk 0:00:20]} 28. Bf3 {[%clk 0:01:19]}  h5 {[%clk 0:00:16]} 29. Nc4 {[%clk 0:01:13]}  b5 {[%clk 0:00:14]} 30. axb5 {[%clk 0:01:12]}  axb5 {[%clk 0:00:15]} 31. Qxb5 {[%clk 0:01:13]}  Ne4 {[%clk 0:00:16]} 32. Qc6 {[%clk 0:01:08]}  Nf6 {[%clk 0:00:13]} 33. Qb7 {[%clk 0:01:07]}  Qe6 {[%clk 0:00:11]} 34. b3 {[%clk 0:01:03]}  Ng4 {[%clk 0:00:11]} 35. Bxg4 {[%clk 0:01:00]}  hxg4 {[%clk 0:00:12]} 36. Be5 {[%clk 0:01:00]} 1-0


[Site "https://www.chess.com"]

[Event "Titled Tuesday Blitz March 22 Early 2022"]
[White "Tanenbaum, Zachary"]
[Black "Lagunov, Evgenij"]
[WhiteFideId "2060850"]
[BlackFideId "4125363"]
[WhiteElo "2168"]
[BlackElo "2200"]
[Result "0-1"]
[Round "01"]
[TimeControl "180+1"]
[Date "2022.03.22"]
[WhiteClock "0:00:17"]
[BlackClock "0:00:16"]

1. e4 {[%clk 0:02:13]}  c5 {[%clk 0:02:55]} 2. Nf3 {[%clk 0:02:13]}  e6 {[%clk 0:02:54]} 3. d4 {[%clk 0:02:13]}  cxd4 {[%clk 0:02:52]} 4. Nxd4 {[%clk 0:02:14]}  Nf6 {[%clk 0:02:52]} 5. Nc3 {[%clk 0:02:13]}  Nc6 {[%clk 0:02:51]} 6. Ndb5 {[%clk 0:02:12]}  d6 {[%clk 0:02:49]} 7. Bf4 {[%clk 0:02:10]}  e5 {[%clk 0:02:49]} 8. Bg5 {[%clk 0:02:08]}  a6 {[%clk 0:02:48]} 9. Na3 {[%clk 0:02:07]}  b5 {[%clk 0:02:47]} 10. Bxf6 {[%clk 0:02:07]}  gxf6 {[%clk 0:02:45]} 11. Nd5 {[%clk 0:02:07]}  f5 {[%clk 0:02:44]} 12. exf5 {[%clk 0:02:04]}  Bxf5 {[%clk 0:02:43]} 13. Qf3 {[%clk 0:02:00]}  Nd4 {[%clk 0:02:01]} 14. Nc7+ {[%clk 0:01:58]}  Qxc7 {[%clk 0:01:59]} 15. Qxa8+ {[%clk 0:01:59]}  Ke7 {[%clk 0:01:55]} 16. c3 {[%clk 0:01:42]}  b4 {[%clk 0:01:50]} 17. cxb4 {[%clk 0:01:31]}  Qb6 {[%clk 0:01:19]} 18. b5 {[%clk 0:01:15]}  Qa5+ {[%clk 0:01:11]} 19. Kd1 {[%clk 0:01:11]}  Bh6 {[%clk 0:00:56]} 20. Qa7+ {[%clk 0:00:46]}  Kf6 {[%clk 0:00:51]} 21. b4 {[%clk 0:00:19]}  Qxa3 {[%clk 0:00:30]} 22. Qxa6 {[%clk 0:00:18]}  Bc2+ {[%clk 0:00:18]} 23. Ke1 {[%clk 0:00:17]}  Qc3# {[%clk 0:00:16]} 0-1


[Site "https://www.chess.com"]